bitfinex/quotes_SOLUSD_20230102
["timestamp","ask_amount","ask_price","bid_price","bid_amount"]
[1672657258842,30.0,11.057,11.049,30.0]
[1672657259147,30.0,11.057,11.047,139.9669]
[1672657259360,67.94,11.056,11.047,109.9669]
[1672657259557,30.0,11.054,11.047,109.9669]
[1672657259773,87.96,11.053,11.047,109.9669]
[1672657260100,30.0,11.052,11.047,109.9669]
[1672657260409,20.0,11.051,11.047,109.9669]
[1672657260620,20.0,11.051,11.042,30.0]
[1672657261029,67.96,11.053,11.043,20.0]
[1672657261243,23.3203,11.055,11.045,30.0]
[1672657261552,53.3203,11.055,11.045,30.0]
[1672657261790,23.3203,11.055,11.045,30.0]
[1672657261977,23.3203,11.055,11.045,146.871]
[1672657262400,23.3203,11.055,11.045,116.871]
[1672657262615,30.0,11.054,11.046,30.0]
[1672657262822,97.95,11.054,11.046,30.0]
[1672657263347,17.0,11.053,11.046,30.0]
[1672657265036,17.0,11.053,11.045,116.871]
[1672657265658,17.0,11.053,11.046,30.0]
[1672657267452,17.0,11.053,11.045,116.871]
[1672657267662,47.0,11.053,11.045,116.871]
[1672657267858,17.0,11.053,11.045,116.871]
[1672657268602,47.0,11.053,11.045,116.871]
[1672657270404,47.0,11.053,11.042,67.91]
[1672657270597,9.33,11.05,11.039,67.93]
[1672657270802,30.0,11.048,11.036,204.4017]
[1672657271012,30.0,11.048,11.037,30.0]
[1672657271249,30.0,11.048,11.039,30.0]
[1672657271642,30.0,11.048,11.038,67.94]
[1672657271853,30.0,11.046,11.037,181.842]
[1672657272081,30.0,11.046,11.037,113.892]
[1672657273047,117.4909,11.047,11.037,113.892]
[1672657273242,30.0,11.046,11.037,113.892]
[1672657273432,30.0,11.044,11.037,113.892]
[1672657273642,68.02,11.043,11.037,113.892]
[1672657273961,30.0,11.042,11.037,113.892]
[1672657274397,30.0,11.044,11.037,113.892]
[1672657275434,30.0,11.042,11.037,113.892]
[1672657275649,30.0,11.042,11.035,24.1766]
[1672657275867,30.0,11.042,11.034,30.0]
[1672657276180,98.01,11.044,11.033,130.7244]
[1672657276181,98.01,11.044,11.033,176.2516]
[1672657276395,68.01,11.044,11.035,30.0]
[1672657276825,49.5009,11.046,11.035,98.07]
[1672657277152,49.5009,11.046,11.035,206.2416]
[1672657277455,30.0,11.045,11.035,138.1716]
[1672657277671,49.5009,11.046,11.036,68.06]
[1672657277876,49.5009,11.046,11.037,30.0]
[1672657278192,79.5009,11.046,11.037,30.0]
[1672657279037,17.0,11.045,11.037,30.0]
[1672657279962,49.5009,11.046,11.037,30.0]
[1672657280695,49.5009,11.046,11.039,30.0]
[1672657283014,49.5009,11.046,11.041,30.0]
[1672657283242,23.8363,11.049,11.041,30.0]
[1672657287333,23.8363,11.049,11.042,68.01]
[1672657287549,23.8363,11.049,11.043,30.0]
[1672657287862,23.6127,11.05,11.043,30.0]
[1672657288094,20.0,11.049,11.042,68.01]
[1672657288299,20.0,11.049,11.041,30.0]
[1672657288601,17.0,11.048,11.041,30.0]
[1672657290796,17.0,11.048,11.043,30.0]
[1672657291001,20.0,11.049,11.043,30.0]
[1672657292832,48.0147,11.05,11.043,30.0]
[1672657293052,67.94,11.056,11.044,105.01]
[1672657293232,23.4707,11.058,11.044,105.01]
[1672657293233,117.2778,11.057,11.044,239.1881]
[1672657293560,117.2778,11.057,11.045,30.0]
[1672657293776,47.0276,11.056,11.047,30.0]
[1672657294499,17.0,11.055,11.047,30.0]
[1672657300278,17.0,11.055,11.046,138.4307]
[1672657300279,17.0,11.055,11.046,108.4307]
[1672657300478,47.0,11.055,11.046,108.4307]
[1672657302829,17.0,11.055,11.047,30.0]
[1672657305647,47.0,11.055,11.046,108.4307]
[1672657305864,41.1323,11.055,11.047,30.0]
[1672657309842,41.1323,11.055,11.047,97.99]
[1672657310583,41.1323,11.055,11.047,30.0]
[1672657311412,24.1323,11.055,11.047,30.0]
[1672657311643,24.1323,11.055,11.049,30.0]
[1672657314570,24.1323,11.055,11.051,30.0]
[1672657314775,22.7822,11.056,11.051,30.0]
[1672657315646,22.7822,11.056,11.05,67.98]
[1672657315953,22.7822,11.056,11.047,140.1713]
[1672657316165,17.0,11.055,11.047,140.1713]
[1672657316691,17.0,11.055,11.048,30.0]
[1672657317507,17.0,11.055,11.047,140.1713]
[1672657317933,17.0,11.055,11.048,30.0]
[1672657318895,17.0,11.055,11.048,97.99]
[1672657320134,17.0,11.055,11.048,30.0]
[1672657321728,17.0,11.055,11.047,140.1713]
[1672657321953,47.0,11.055,11.047,140.1713]
[1672657323218,30.0,11.054,11.047,140.1713]
[1672657323425,17.0,11.053,11.047,140.1713]
[1672657323634,17.0,11.053,11.047,115.6633]
[1672657325415,67.96,11.052,11.041,67.86]
[1672657325624,9.31,11.05,11.037,116.3705]
[1672657325829,30.0,11.048,11.039,30.0]
[1672657326680,54.3447,11.048,11.039,30.0]
[1672657326995,24.3447,11.048,11.039,30.0]
[1672657328881,24.3447,11.048,11.038,67.88]
[1672657329209,30.0,11.047,11.038,67.88]
[1672657329612,53.2608,11.047,11.038,67.88]
[1672657329821,53.2608,11.047,11.037,184.4305]
[1672657331708,23.2608,11.047,11.038,30.0]
[1672657332127,53.2608,11.047,11.038,30.0]
[1672657333626,53.2608,11.047,11.037,184.4305]
[1672657333834,53.2608,11.047,11.037,116.3705]
[1672657334046,121.2508,11.047,11.037,116.3705]
[1672657334573,121.2508,11.047,11.038,30.0]
[1672657334981,91.2508,11.047,11.038,30.0]
[1672657335621,23.2608,11.047,11.038,30.0]
[1672657337398,23.2608,11.047,11.04,30.0]
[1672657337610,23.2608,11.047,11.041,68.03]
[1672657337926,23.2608,11.047,11.042,30.0]
[1672657338989,17.0,11.046,11.04,30.0]
[1672657340964,17.0,11.046,11.042,30.0]
[1672657341821,23.2608,11.047,11.042,30.0]
[1672657345624,23.2608,11.047,11.041,68.03]
[1672657346553,23.2608,11.047,11.042,30.0]
[1672657347083,23.2608,11.047,11.038,98.05]
[1672657347295,23.2608,11.047,11.037,184.4305]
[1672657347498,91.2508,11.047,11.038,30.0]
[1672657348345,23.2608,11.047,11.038,98.05]
[1672657349603,23.2608,11.047,11.038,113.85730786]
[1672657355499,23.2608,11.047,11.038,164.68379164]
[1672657356546,23.2608,11.047,11.04,30.0]
[1672657356872,23.2608,11.047,11.042,30.0]
[1672657357612,67.95,11.054,11.044,30.0]
[1672657357916,22.7761,11.054,11.045,68.01]
[1672657358123,22.7761,11.054,11.046,30.0]
[1672657359173,52.7761,11.054,11.045,113.81730786]
[1672657359388,52.7761,11.054,11.046,30.0]
[1672657359604,22.7761,11.054,11.046,30.0]
[1672657359820,30.0,11.053,11.045,68.01]
[1672657360130,30.0,11.053,11.044,208.3471]
[1672657361475,30.0,11.053,11.044,140.3371]
[1672657361697,30.0,11.053,11.045,30.0]
[1672657362653,30.0,11.053,11.044,140.3371]
[1672657366004,9.31,11.05,11.042,68.0]
[1672657366204,50.0,11.049,11.04,67.96]
[1672657366414,72.5224,11.049,11.04,67.96]
[1672657367155,72.5224,11.049,11.039,97.97]
[1672657368968,42.5224,11.049,11.039,97.97]
[1672657378291,67.96,11.052,11.039,97.97]
[1672657378514,67.95,11.054,11.041,30.0]
[1672657378719,30.0,11.053,11.043,30.0]
[1672657379145,30.0,11.053,11.044,20.0]
[1672657382407,90.6877,11.054,11.044,20.0]
[1672657382715,30.0,11.053,11.044,20.0]
[1672657385757,30.0,11.053,11.044,19.92208453]
[1672657387648,90.6877,11.054,11.044,19.92208453]
[1672657388816,30.0,11.053,11.044,19.92208453]
[1672657389650,90.6877,11.054,11.044,19.92208453]
[1672657389867,90.6877,11.054,11.045,30.0]
[1672657389868,22.7377,11.054,11.045,30.0]
[1672657390056,22.7377,11.054,11.046,68.0]
[1672657390272,22.7377,11.054,11.047,30.0]
[1672657390481,22.7377,11.054,11.048,67.99]
[1672657390897,22.7377,11.054,11.046,68.0]
[1672657392160,22.7377,11.054,11.045,98.01]
[1672657399744,17.0,11.053,11.045,98.01]
[1672657399951,17.0,11.053,11.045,68.01]
[1672657400177,30.0,11.052,11.045,68.01]
[1672657400389,17.0,11.051,11.045,68.01]
[1672657402067,54.129,11.053,11.045,68.01]
[1672657402819,30.0,11.052,11.044,159.81698453]
[1672657403220,24.129,11.053,11.045,30.0]
[1672657403767,24.129,11.053,11.044,159.81698453]
[1672657403968,30.0,11.052,11.045,68.01]
[1672657404287,24.129,11.053,11.044,159.81698453]
[1672657404508,24.129,11.053,11.045,30.0]
[1672657404909,24.129,11.053,11.044,159.81698453]
[1672657404910,24.129,11.053,11.044,139.8949]
[1672657405109,24.129,11.053,11.04,68.04]
[1672657405110,9.33,11.05,11.04,68.04]
[1672657405310,67.98,11.049,11.036,110.6457]
[1672657405527,179.9782,11.049,11.037,68.06]
[1672657405757,30.0,11.048,11.037,68.06]
[1672657406175,30.0,11.046,11.037,68.06]
[1672657406369,30.0,11.046,11.036,178.7057]
[1672657406579,88.01,11.045,11.032,68.09]
[1672657406796,247.5861,11.045,11.026,178.7657]
[1672657407014,182.4398,11.044,11.026,178.7657]
[1672657407210,182.4398,11.044,11.027,30.0]
[1672657407211,118.02,11.043,11.027,30.0]
[1672657407417,118.02,11.043,11.028,68.11]
[1672657407639,47.5779,11.042,11.028,68.11]
[1672657407854,118.03,11.041,11.029,30.0]
[1672657408073,118.03,11.041,11.031,30.0]
[1672657408482,9.25,11.04,11.03,68.1]
[1672657408683,20.0,11.039,11.028,68.11]
[1672657408897,30.0,11.038,11.028,68.11]
[1672657409742,50.0,11.039,11.028,68.11]
[1672657409953,50.0,11.039,11.029,30.0]
[1672657410169,50.0,11.039,11.03,68.1]
[1672657412901,20.0,11.039,11.03,68.1]
[1672657413752,20.0,11.039,11.031,30.0]
[1672657414149,20.0,11.039,11.03,68.1]
[1672657414356,30.0,11.038,11.03,68.1]
[1672657414789,50.0,11.039,11.03,68.1]
[1672657415211,50.0,11.039,11.031,15.80730786]
[1672657415420,20.0,11.039,11.031,30.0]
[1672657416675,20.0,11.039,11.032,68.09]
[1672657416889,20.0,11.039,11.031,98.09]
[1672657417403,20.0,11.039,11.03,68.1]
[1672657417838,98.02,11.042,11.031,30.0]
[1672657418051,30.0,11.042,11.033,30.0]
[1672657418244,68.01,11.044,11.034,20.0]
[1672657419117,68.01,11.044,11.032,68.09]
[1672657419302,30.0,11.041,11.032,68.09]
[1672657419529,20.0,11.04,11.031,68.09]
[1672657419734,20.0,11.04,11.03,68.1]
[1672657419943,20.0,11.04,11.031,30.0]
[1672657422677,20.0,11.04,11.03,68.1]
[1672657423732,20.0,11.04,11.031,30.0]
[1672657424348,20.0,11.04,11.03,68.1]
[1672657424792,20.0,11.04,11.029,98.1]
[1672657424974,17.0,11.039,11.029,98.1]
[1672657425724,41.8185,11.039,11.029,98.1]
[1672657426985,41.70147554,11.039,11.029,98.1]
[1672657427824,41.70147554,11.039,11.03,9.33]
[1672657428568,41.70147554,11.039,11.032,30.0]
[1672657429506,41.70147554,11.039,11.031,30.0]
[1672657431514,24.8185,11.039,11.031,30.0]
[1672657432661,24.2067,11.043,11.031,30.0]
[1672657432662,68.01,11.045,11.033,30.0]
[1672657432869,113.6057,11.045,11.034,20.0]
[1672657433085,30.0,11.044,11.034,20.0]
[1672657433588,52.9827,11.044,11.034,20.0]
[1672657434016,17.0,11.043,11.035,30.0]
[1672657439168,17.0,11.043,11.034,50.0]
[1672657442535,22.9827,11.044,11.035,30.0]
[1672657442741,22.9827,11.044,11.036,17.0]
[1672657442957,22.9827,11.044,11.035,98.07]
[1672657442958,22.9827,11.044,11.038,30.0]
[1672657444133,22.9827,11.044,11.038,98.05]
[1672657453799,22.9827,11.044,11.038,68.05]
[1672657453999,22.9827,11.044,11.036,68.06]
[1672657454204,52.9827,11.044,11.035,209.38066221]
[1672657454846,22.9827,11.044,11.035,209.38066221]
[1672657455063,22.9827,11.044,11.036,30.0]
[1672657455594,52.9827,11.044,11.035,209.38066221]
[1672657456102,22.9827,11.044,11.036,30.0]
[1672657456434,30.0,11.043,11.035,209.38066221]
[1672657458759,30.0,11.043,11.035,277.45066221]
[1672657460745,52.9827,11.044,11.036,30.0]
[1672657460952,22.9827,11.044,11.035,277.45066221]
[1672657461180,22.9827,11.044,11.036,30.0]
[1672657461676,22.9827,11.044,11.035,277.45066221]
[1672657461886,22.9827,11.044,11.036,30.0]
[1672657462959,22.9827,11.044,11.035,277.45066221]
[1672657463174,22.9827,11.044,11.036,30.0]
[1672657463488,22.9827,11.044,11.035,277.45066221]
[1672657463802,22.9827,11.044,11.036,30.0]
[1672657464327,22.9827,11.044,11.035,277.45066221]
[1672657465476,30.0,11.043,11.035,277.45066221]
[1672657465691,30.0,11.043,11.035,209.38066221]
[1672657465880,30.0,11.043,11.035,133.6105]
[1672657466953,30.0,11.043,11.035,201.6805]
[1672657468867,30.0,11.043,11.035,149.41780786]
[1672657469182,30.0,11.043,11.035,133.6105]
[1672657469582,52.9827,11.044,11.035,133.6105]
[1672657472221,22.9827,11.044,11.035,133.6105]
[1672657472628,22.9827,11.044,11.036,30.0]
[1672657476845,22.9827,11.044,11.035,201.6805]
[1672657477250,22.9827,11.044,11.036,30.0]
[1672657478733,22.9827,11.044,11.035,201.6805]
[1672657479350,22.9827,11.044,11.036,30.0]
[1672657479989,22.9827,11.044,11.035,201.6805]
[1672657480748,22.9827,11.044,11.036,30.0]
[1672657483471,88.02,11.043,11.022,262.2]
[1672657483684,9.35,11.04,11.027,0.41348193]
[1672657483886,30.0,11.038,11.027,30.0]
[1672657484100,68.04,11.039,11.027,30.0]
[1672657484314,68.03,11.041,11.028,83.91730786]
[1672657484521,50.0,11.04,11.029,30.0]
[1672657484726,29.35,11.04,11.031,30.0]
[1672657484939,52.1223,11.04,11.031,30.0]
[1672657485266,42.7723,11.04,11.031,30.0]
[1672657487794,42.7723,11.04,11.03,68.1]
[1672657488003,42.7723,11.04,11.031,30.0]
[1672657488522,110.8123,11.04,11.031,30.0]
[1672657490709,120.1623,11.04,11.028,68.11]
[1672657490929,30.0,11.038,11.026,208.3377]
[1672657491245,30.0,11.036,11.026,140.2177]
[1672657491972,54.1811,11.036,11.026,140.2177]
[1672657492178,30.0,11.034,11.026,140.2177]
[1672657492392,30.0,11.034,11.026,117.0705]
[1672657492604,30.0,11.034,11.022,292.2]
[1672657492605,68.08,11.033,11.021,24.1385]
[1672657492817,50.0,11.032,11.017,30.0]
[1672657493025,24.1811,11.034,11.021,30.0]
[1672657493360,24.1811,11.034,11.022,216.46480786]
[1672657493570,24.1811,11.034,11.023,50.0]
[1672657493898,24.1811,11.034,11.024,68.14]
[1672657494087,24.1811,11.034,11.025,30.0]
[1672657494406,24.1811,11.034,11.027,30.0]
[1672657495023,17.0,11.033,11.027,30.0]
[1672657495567,17.0,11.033,11.029,30.0]
[1672657496514,17.0,11.033,11.027,98.12]
[1672657497771,17.0,11.033,11.027,68.12]
[1672657498273,17.0,11.033,11.026,98.12]
[1672657498701,24.1811,11.034,11.026,98.12]
[1672657498928,24.1811,11.034,11.028,30.0]
[1672657499240,24.1811,11.034,11.03,30.0]
[1672657499450,23.9667,11.035,11.031,68.09]
[1672657499664,24.2559,11.038,11.031,68.09]
[1672657499870,142.8305,11.041,11.031,68.09]
[1672657500079,20.0,11.04,11.031,68.09]
[1672657500602,44.1536,11.04,11.031,68.09]
[1672657501012,17.0,11.039,11.031,68.09]
[1672657501237,47.0,11.039,11.031,68.09]
[1672657501643,47.0,11.039,11.03,30.0]
[1672657501853,69.7872,11.039,11.03,30.0]
[1672657502278,39.7872,11.039,11.03,30.0]
[1672657506065,22.7872,11.039,11.03,30.0]
[1672657507001,22.7872,11.039,11.028,98.11]
[1672657507231,23.1231,11.038,11.028,98.11]
[1672657507444,17.0,11.037,11.028,168.95179553]
[1672657507656,40.1231,11.037,11.028,168.95179553]
[1672657511633,40.1231,11.037,11.028,243.32362597]
[1672657511846,40.1231,11.037,11.028,227.51631811]
[1672657514375,23.1231,11.037,11.028,227.51631811]
[1672657514580,23.1231,11.037,11.031,30.0]
[1672657514911,23.1231,11.037,11.031,98.09]
[1672657516378,23.1231,11.037,11.031,68.09]
[1672657517529,17.0,11.036,11.031,68.09]
[1672657520897,17.0,11.036,11.03,77.45]
[1672657521118,17.0,11.036,11.03,68.1]
[1672657521848,17.0,11.036,11.029,98.1]
[1672657524265,17.0,11.036,11.028,197.51631811]
[1672657524478,47.0,11.036,11.028,129.40631811]
[1672657524684,47.0,11.036,11.028,58.56452258]
[1672657524897,47.0,11.036,11.027,68.12]
[1672657525110,115.06,11.036,11.025,203.29369553]
[1672657525421,54.2225,11.035,11.025,132.4519]
[1672657525615,68.07,11.034,11.025,132.4519]
[1672657525825,68.07,11.034,11.026,30.0]
[1672657526036,17.0,11.033,11.026,30.0]
[1672657527628,17.0,11.033,11.025,132.4519]
[1672657527842,47.0,11.033,11.025,132.4519]
[1672657528156,17.0,11.033,11.025,132.4519]
[1672657529204,47.0,11.033,11.025,132.4519]
[1672657530470,17.0,11.033,11.026,30.0]
[1672657532022,17.0,11.033,11.025,132.4519]
[1672657533190,85.08,11.033,11.025,132.4519]
[1672657533403,47.0,11.033,11.025,132.4519]
[1672657533820,17.0,11.033,11.025,132.4519]
[1672657534022,17.0,11.033,11.026,30.0]
[1672657534236,17.0,11.033,11.025,132.4519]
[1672657534672,17.0,11.033,11.026,30.0]
[1672657534864,17.0,11.033,11.025,132.4519]
[1672657535084,17.0,11.033,11.026,30.0]
[1672657536250,17.0,11.033,11.025,132.4519]
[1672657536557,47.0,11.033,11.025,132.4519]
[1672657538118,30.0,11.032,11.022,68.15]
[1672657538333,20.0,11.031,11.02,68.16]
[1672657538544,98.1,11.03,11.021,30.41370059]
[1672657538750,20.0,11.029,11.021,30.0]
[1672657538961,20.0,11.029,11.02,68.16]
[1672657539171,43.5951,11.029,11.02,68.16]
[1672657540238,30.0,11.028,11.019,15.80730786]
[1672657540446,30.0,11.028,11.02,68.5737369]
[1672657540658,30.0,11.028,11.021,0.41369936]
[1672657540872,30.0,11.028,11.021,15.80730786]
[1672657541502,30.0,11.028,11.02,68.16]
[1672657541701,30.0,11.028,11.019,45.80730786]
[1672657541916,43.5951,11.029,11.02,0.4137369]
[1672657542127,43.5951,11.029,11.02,0.41369936]
[1672657543288,43.5951,11.029,11.021,15.80730786]
[1672657543512,30.0,11.028,11.021,15.80730786]
[1672657545076,30.0,11.028,11.019,30.0]
[1672657545396,52.7081,11.028,11.02,16.22104476]
[1672657545583,22.7081,11.028,11.021,0.41369936]
[1672657545793,22.7081,11.028,11.02,15.80730786]
[1672657547916,22.7081,11.028,11.019,30.0]
[1672657548107,30.0,11.027,11.02,0.4137369]
[1672657548437,30.0,11.027,11.02,0.41369936]
[1672657548651,90.8181,11.028,11.02,0.41369936]
[1672657548843,90.8181,11.028,11.019,30.0]
[1672657549055,30.0,11.027,11.018,30.0]
[1672657549283,53.5007,11.027,11.018,30.0]
[1672657549487,23.5007,11.027,11.018,30.0]
[1672657549893,53.5007,11.027,11.018,30.0]
[1672657550226,53.5007,11.027,11.019,15.80730786]
[1672657550647,23.5007,11.027,11.019,15.80730786]
[1672657551176,53.5007,11.027,11.019,15.80730786]
[1672657551485,23.5007,11.027,11.019,15.80730786]
[1672657551895,53.5007,11.027,11.019,15.80730786]
[1672657552104,23.5007,11.027,11.019,15.80730786]
[1672657552738,53.5007,11.027,11.019,15.80730786]
[1672657552947,23.5007,11.027,11.019,15.80730786]
[1672657554537,91.6207,11.027,11.019,15.80730786]
[1672657556010,23.5007,11.027,11.019,15.80730786]
[1672657556424,30.0,11.026,11.019,15.80730786]
[1672657557160,23.5007,11.027,11.019,15.80730786]
[1672657557372,23.5007,11.027,11.019,45.80730786]
[1672657557898,23.5007,11.027,11.02,15.80730786]
[1672657558826,91.6207,11.027,11.02,15.80730786]
[1672657559458,47.0,11.026,11.02,15.80730786]
[1672657559883,17.0,11.026,11.02,15.80730786]
[1672657560736,91.6207,11.027,11.02,15.80730786]
[1672657560939,23.5007,11.027,11.02,15.80730786]
[1672657561359,23.5007,11.027,11.017,68.18]
[1672657561565,23.5007,11.027,11.007,439.73615122]
[1672657561566,30.0,11.025,11.007,30.0]
[1672657561779,9.31,11.02,11.009,30.41415034]
[1672657562105,20.0,11.019,11.007,145.5746]
[1672657562322,65.5746,11.019,11.011,30.0]
[1672657562528,68.15,11.022,11.011,30.0]
[1672657562745,22.9341,11.024,11.012,160.55353302]
[1672657562953,30.0,11.022,11.013,30.0]
[1672657563144,30.0,11.022,11.012,92.34353302]
[1672657563356,9.37,11.02,11.012,92.34353302]
[1672657563574,30.0,11.018,11.012,92.34353302]
[1672657563791,30.0,11.018,11.009,30.0]
[1672657564001,52.9341,11.018,11.009,122.34353302]
[1672657564406,52.9341,11.018,11.009,92.34353302]
[1672657564826,52.9341,11.018,11.007,128.60980891]
[1672657565036,52.9341,11.018,11.008,30.0]
[1672657565037,23.5323,11.017,11.008,30.0]
[1672657565248,23.5323,11.017,11.01,30.0]
[1672657566106,23.5323,11.017,11.008,68.23]
[1672657566311,30.0,11.016,11.007,184.4478]
[1672657566520,68.19,11.015,11.007,116.2078]
[1672657566728,30.0,11.014,11.007,116.2078]
[1672657566931,68.2,11.013,11.007,116.2078]
[1672657567153,30.0,11.012,11.007,116.2078]
[1672657568500,68.2,11.013,11.007,116.2078]
[1672657568725,30.0,11.012,11.007,116.2078]
[1672657571473,91.7323,11.014,11.007,116.2078]
[1672657571660,23.5323,11.014,11.008,30.0]
[1672657571869,23.5323,11.014,11.008,98.23]
[1672657572518,23.5323,11.014,11.008,68.23]
[1672657573248,23.5323,11.014,11.008,30.0]
[1672657573454,23.5323,11.014,11.008,98.23]
[1672657574708,23.5323,11.014,11.008,68.23]
[1672657576083,17.0,11.013,11.008,68.23]
[1672657576409,23.5323,11.014,11.009,30.0]
[1672657576842,23.5323,11.014,11.011,30.0]
[1672657577020,24.6559,11.015,11.011,30.0]
[1672657577774,116.7807,11.018,11.011,30.0]
[1672657577979,614.55338629,11.025,11.012,168.23819969]
[1672657578300,24.7689,11.025,11.013,117.80219969]
[1672657578487,24.7689,11.025,11.015,30.0]
[1672657578701,24.7689,11.025,11.016,68.19]
[1672657578923,24.7689,11.025,11.017,30.0]
[1672657579451,24.7689,11.025,11.016,177.7035]
[1672657579857,24.7689,11.025,11.017,30.0]
[1672657580502,24.7689,11.025,11.016,109.5135]
[1672657580820,0.08266537,11.017,11.016,109.5135]
[1672657581023,30.0,11.024,11.016,109.5135]
[1672657581864,17.0,11.023,11.016,109.5135]
[1672657582401,24.7689,11.025,11.017,87.80219969]
[1672657582615,24.7689,11.025,11.018,98.17]
[1672657583228,24.7689,11.025,11.018,185.97219969]
[1672657586272,24.7689,11.025,11.02,9.39]
[1672657586483,23.9839,11.026,11.02,9.39]
[1672657587026,23.9839,11.026,11.018,300.81369969]
[1672657588369,17.0,11.025,11.018,300.81369969]
[1672657589331,17.0,11.025,11.018,270.81369969]
[1672657589549,30.0,11.024,11.018,114.8415]
[1672657590376,30.0,11.025,11.018,114.8415]
[1672657590710,47.5275,11.026,11.018,114.8415]
[1672657590901,47.5275,11.026,11.019,30.0]
[1672657591755,47.5275,11.026,11.019,98.17]
[1672657593123,47.5275,11.026,11.019,185.97219969]
[1672657593330,47.5275,11.026,11.019,269.30849578]
[1672657600674,47.5275,11.026,11.019,239.30849578]
[1672657600885,47.5275,11.026,11.019,171.13849578]
[1672657601537,47.5275,11.026,11.02,30.0]
[1672657601844,47.5275,11.026,11.019,87.80219969]
[1672657602048,47.5275,11.026,11.02,30.0]
[1672657602462,47.5275,11.026,11.019,117.80219969]
[1672657602673,47.5275,11.026,11.02,30.0]
[1672657603424,47.5275,11.026,11.019,117.80219969]
[1672657603825,47.5275,11.026,11.02,30.0]
[1672657607404,47.5275,11.026,11.019,117.80219969]
[1672657608147,47.5275,11.026,11.02,30.0]
[1672657609836,47.5275,11.026,11.019,30.0]
[1672657610045,47.5275,11.026,11.018,114.8415]
[1672657610670,30.0,11.025,11.018,114.8415]
[1672657610984,88.14,11.024,11.018,114.8415]
[1672657611192,30.0,11.023,11.018,114.8415]
[1672657611405,88.15,11.022,11.018,114.8415]
[1672657611595,30.0,11.021,11.011,68.22]
[1672657611812,88.16,11.02,11.008,30.0]
[1672657612037,30.0,11.019,11.009,68.23]
[1672657612246,30.0,11.019,11.01,30.0]
[1672657612667,53.9136,11.019,11.011,68.22]
[1672657613283,23.9136,11.019,11.01,98.22]
[1672657613493,23.9136,11.019,11.01,123.37730786]
[1672657613719,23.9136,11.019,11.01,179.3485279]
[1672657617611,23.9136,11.019,11.01,107.57]
[1672657618223,23.9136,11.019,11.01,98.22]
[1672657618958,23.9136,11.019,11.01,107.61]
[1672657619181,124.41746725,11.03,11.01,123.41730786]
[1672657619182,68.13,11.025,11.01,123.41730786]
[1672657619396,22.7503,11.024,11.012,30.0]
[1672657619608,22.7503,11.024,11.013,224.5527]